Workbook

Sheet Лист1
A1: Годовая процентная ставка | C1: 0.16 | E1: Дата платежа | F1: 2013-03-20 | G1: льготный период мес. | H1: 6
A2: Сумма кредита | C2: 714400 | E2: Дата выдачи | F2: 2013-03-04
A3: Ежемесячный платеж | C3: 9200 | E3: срок мес. | F3: 84
B4: период платежа
A5: Номер платежа | B5: =$F$1 -> 2013-03-20 | C5: Период платежа | D5: Годовая база | E5: Сумма долга на начало периода | F5: Сумма начисленных процентов за период | G5: Сумма процентов, предъявляемых к оплате | H5: Сумма оплаты | I5: Сумма погашаемого основного долга | J5: Сумма долга на конец периода
A6: 0 | B6: =$F$2 -> 2013-03-04 | J6: =$C$2 -> 714400
A7: =ROW(A1) -> 1 | B7: =$B$5 -> 2013-03-20 | C7: =B7-B6 -> 16 | D7: =IF(MOD(YEAR(B7),4)=0,366,365) -> 365 | E7: =J6 -> 714400 | F7: =E7*$C$1*C7/D7 -> 5010.586301 | G7: =IF(A7="",0,SUM($F$6:F7)-SUM($G$6:G6)) -> 5010.586301 | H7: =IF(A7="",0,$C$3) -> 9200 | I7: =H7-G7 -> 4189.413699 | J7: =E7-I7 -> 710210.5863
A8: =ROW(A2) -> 2 | B8: =DATE(YEAR(B7),MONTH(B7)+1,DAY(B7)) -> 2013-04-20 | C8: =B8-B7 -> 31 | D8: =IF(MOD(YEAR(B8),4)=0,366,365) -> 365 | E8: =J7 -> 710210.5863 | F8: =E8*$C$1*C8/D8 -> 9651.080844 | G8: =IF(A8="",0,SUM($F$6:F8)-SUM($G$6:G7)) -> 9651.080844 | H8: 9200 | I8: =H8-G8 -> -451.080844 | J8: =E8-I8 -> 710661.6671
A9: 3 | B9: 2013-05-20 | C9: 30 | D9: 365 | E9: 710661.6671 | F9: 9345.687678 | G9: =IF(A9="",0,SUM($F$6:F9)-SUM($G$6:G8)) -> 9345.687678 | H9: 9200 | I9: -145.6876775 | J9: =E9-I9 -> 710807.3548
A10: 4 | B10: 2013-06-20 | C10: 31 | D10: 365 | E10: 710807.3548 | F10: 9659.190356 | G10: =IF(A10="",0,SUM($F$6:F10)-SUM($G$6:G9)) -> 9659.190356 | H10: 9200 | I10: -459.1903559 | J10: =E10-I10 -> 711266.5452
A11: 5 | B11: 2013-07-20 | C11: 30 | D11: 365 | E11: 711266.5452 | F11: 9353.642238 | G11: =IF(A11="",0,SUM($F$6:F11)-SUM($G$6:G10)) -> 9353.642238 | H11: 9200 | I11: -153.642238 | J11: =E11-I11 -> 711420.1874
A12: 6 | B12: 2013-08-20 | C12: 31 | D12: 365 | E12: 711420.1874 | F12: 9667.518163 | G12: =IF(A12="",0,SUM($F$6:F12)-SUM($G$6:G11)) -> 9667.518163 | H12: 9200 | I12: -467.5181633 | J12: =E12-I12 -> 711887.7056
A13: 7 | B13: 2013-09-20 | C13: 31 | D13: 365 | E13: 711887.7056 | F13: 9673.871287 | G13: =IF(A13="",0,SUM($F$6:F13)-SUM($G$6:G12)) -> 9673.871287 | H13: 9200 | I13: -473.8712868 | J13: =E13-I13 -> 712361.5769
A14: 8 | B14: 2013-10-20 | C14: 30 | D14: 365 | E14: 712361.5769 | F14: 9368.042655 | G14: =IF(A14="",0,SUM($F$6:F14)-SUM($G$6:G13)) -> 9368.042655 | H14: 9200 | I14: -168.0426547 | J14: =E14-I14 -> 712529.6195
A15: 9 | B15: 2013-11-20 | C15: 31 | D15: 365 | E15: 712529.6195 | F15: 9682.594282 | G15: =IF(A15="",0,SUM($F$6:F15)-SUM($G$6:G14)) -> 9682.594282 | H15: =IF(A15="",0,$C$3) -> 9200 | I15: -482.5942817 | J15: =E15-I15 -> 713012.2138
A16: 10 | B16: 2013-12-20 | C16: 30 | D16: 365 | E16: 713012.2138 | F16: 9376.598976 | G16: =IF(A16="",0,SUM($F$6:F16)-SUM($G$6:G15)) -> 9376.598976 | H16: 9200 | I16: -176.598976 | J16: =E16-I16 -> 713188.8128
A17: 11 | B17: 2014-01-20 | C17: 31 | D17: 365 | E17: 713188.8128 | F17: 9691.552086 | G17: =IF(A17="",0,SUM($F$6:F17)-SUM($G$6:G16)) -> 9691.552086 | H17: 9200 | I17: -491.552086 | J17: =E17-I17 -> 713680.3649
A18: 12 | B18: 2014-02-20 | C18: 31 | D18: 365 | E18: 713680.3649 | F18: 9698.231807 | G18: =IF(A18="",0,SUM($F$6:F18)-SUM($G$6:G17)) -> 9698.231807 | H18: 9200 | I18: -498.2318075 | J18: =E18-I18 -> 714178.5967
A19: 13 | B19: 2014-03-20 | C19: 28 | D19: 365 | E19: 714178.5967 | F19: 8765.808529 | G19: =IF(A19="",0,SUM($F$6:F19)-SUM($G$6:G18)) -> 8765.808529 | H19: 9200 | I19: 434.191471 | J19: =E19-I19 -> 713744.4052
A20: 14 | B20: 2014-04-20 | C20: 31 | D20: 365 | E20: 713744.4052 | F20: 9699.102054 | G20: =IF(A20="",0,SUM($F$6:F20)-SUM($G$6:G19)) -> 9699.102054 | H20: 9200 | I20: -499.1020542 | J20: =E20-I20 -> 714243.5073
A21: 15 | B21: 2014-05-20 | C21: 30 | D21: 365 | E21: 714243.5073 | F21: 9392.791328 | G21: =IF(A21="",0,SUM($F$6:F21)-SUM($G$6:G20)) -> 9392.791328 | H21: 9200 | I21: -192.7913283 | J21: =E21-I21 -> 714436.2986
A22: 16 | B22: 2014-06-20 | C22: 31 | D22: 365 | E22: 714436.2986 | F22: 9708.504222 | G22: =IF(A22="",0,SUM($F$6:F22)-SUM($G$6:G21)) -> 9708.504222 | H22: 9200 | I22: -508.5042219 | J22: =E22-I22 -> 714944.8028
A23: 17 | B23: 2014-07-20 | C23: 30 | D23: 365 | E23: 714944.8028 | F23: 9402.013845 | G23: =IF(A23="",0,SUM($F$6:F23)-SUM($G$6:G22)) -> 9402.013845 | H23: 9200 | I23: -202.0138451 | J23: =E23-I23 -> 715146.8167
A24: 18 | B24: 2014-08-20 | C24: 31 | D24: 365 | E24: 715146.8167 | F24: 9718.159481 | G24: =IF(A24="",0,SUM($F$6:F24)-SUM($G$6:G23)) -> 9718.159481 | H24: 9200 | I24: -518.1594811 | J24: =E24-I24 -> 715664.9761
A25: 19 | B25: 2014-09-20 | C25: 31 | D25: 365 | E25: 715664.9761 | F25: 9725.200772 | G25: =IF(A25="",0,SUM($F$6:F25)-SUM($G$6:G24)) -> 9725.200772 | H25: 9200 | I25: -525.2007716 | J25: =E25-I25 -> 716190.1769
A26: 20 | B26: 2014-10-20 | C26: 30 | D26: 365 | E26: 716190.1769 | F26: 9418.391368 | G26: =IF(A26="",0,SUM($F$6:F26)-SUM($G$6:G25)) -> 9418.391368 | H26: 9200 | I26: -218.3913675 | J26: =E26-I26 -> 716408.5683
A27: 21 | B27: 2014-11-20 | C27: 31 | D27: 365 | E27: 716408.5683 | F27: 9735.305476 | G27: =IF(A27="",0,SUM($F$6:F27)-SUM($G$6:G26)) -> 9735.305476 | H27: 9200 | I27: -535.3054757 | J27: =E27-I27 -> 716943.8737
A28: 22 | B28: 2014-12-20 | C28: 30 | D28: 365 | E28: 716943.8737 | F28: 9428.302997 | G28: =IF(A28="",0,SUM($F$6:F28)-SUM($G$6:G27)) -> 9428.302997 | H28: 9200 | I28: -228.3029972 | J28: =E28-I28 -> 717172.1767
A29: 23 | B29: 2015-01-20 | C29: 31 | D29: 365 | E29: 717172.1767 | F29: 9745.682183 | G29: =IF(A29="",0,SUM($F$6:F29)-SUM($G$6:G28)) -> 9745.682183 | H29: 9200 | I29: -545.6821826 | J29: =E29-I29 -> 717717.8589
A30: 24 | B30: 2015-02-20 | C30: 31 | D30: 365 | E30: 717717.8589 | F30: 9753.09748 | G30: =IF(A30="",0,SUM($F$6:F30)-SUM($G$6:G29)) -> 9753.09748 | H30: 9200 | I30: -553.0974802 | J30: =E30-I30 -> 718270.9564
A31: 25 | B31: 2015-03-20 | C31: 28 | D31: 365 | E31: 718270.9564 | F31: 8816.03804 | G31: =IF(A31="",0,SUM($F$6:F31)-SUM($G$6:G30)) -> 8816.03804 | H31: 9200 | I31: 383.9619597 | J31: =E31-I31 -> 717886.9944
A32: 26 | B32: 2015-04-20 | C32: 31 | D32: 365 | E32: 717886.9944 | F32: 9755.39587 | G32: =IF(A32="",0,SUM($F$6:F32)-SUM($G$6:G31)) -> 9755.39587 | H32: 9200 | I32: -555.3958698 | J32: =E32-I32 -> 718442.3903
A33: 27 | B33: 2015-05-20 | C33: 30 | D33: 365 | E33: 718442.3903 | F33: 9448.009517 | G33: =IF(A33="",0,SUM($F$6:F33)-SUM($G$6:G32)) -> 9448.009517 | H33: 9200 | I33: -248.0095165 | J33: =E33-I33 -> 718690.3998
A34: 28 | B34: 2015-06-20 | C34: 31 | D34: 365 | E34: 718690.3998 | F34: 9766.313379 | G34: =IF(A34="",0,SUM($F$6:F34)-SUM($G$6:G33)) -> 9766.313379 | H34: 9200 | I34: -566.3133786 | J34: =E34-I34 -> 719256.7132
A35: 29 | B35: 2015-07-20 | C35: 30 | D35: 365 | E35: 719256.7132 | F35: 9458.71842 | G35: =IF(A35="",0,SUM($F$6:F35)-SUM($G$6:G34)) -> 9458.71842 | H35: 9200 | I35: -258.7184203 | J35: =E35-I35 -> 719515.4316
A36: 30 | B36: 2015-08-20 | C36: 31 | D36: 365 | E36: 719515.4316 | F36: 9777.52477 | G36: =IF(A36="",0,SUM($F$6:F36)-SUM($G$6:G35)) -> 9777.52477 | H36: 9200 | I36: -577.5247696 | J36: =E36-I36 -> 720092.9564
A37: 31 | B37: 2015-09-20 | C37: 31 | D37: 365 | E37: 720092.9564 | F37: 9785.372777 | G37: =IF(A37="",0,SUM($F$6:F37)-SUM($G$6:G36)) -> 9785.372777 | H37: 9200 | I37: -585.3727774 | J37: =E37-I37 -> 720678.3292
A38: 32 | B38: 2015-10-20 | C38: 30 | D38: 365 | E38: 720678.3292 | F38: 9477.413644 | G38: =IF(A38="",0,SUM($F$6:F38)-SUM($G$6:G37)) -> 9477.413644 | H38: 9200 | I38: -277.413644 | J38: =E38-I38 -> 720955.7428
A39: 33 | B39: 2015-11-20 | C39: 31 | D39: 365 | E39: 720955.7428 | F39: 9797.097218 | G39: =IF(A39="",0,SUM($F$6:F39)-SUM($G$6:G38)) -> 9797.097218 | H39: 9200 | I39: -597.0972175 | J39: =E39-I39 -> 721552.84
A40: 34 | B40: 2015-12-20 | C40: 30 | D40: 365 | E40: 721552.84 | F40: 9488.914061 | G40: =IF(A40="",0,SUM($F$6:F40)-SUM($G$6:G39)) -> 9488.914061 | H40: 9200 | I40: -288.9140608 | J40: =E40-I40 -> 721841.7541
A41: 35 | B41: 2016-01-20 | C41: 31 | D41: 366 | E41: 721841.7541 | F41: 9782.33634 | G41: =IF(A41="",0,SUM($F$6:F41)-SUM($G$6:G40)) -> 9782.33634 | H41: 9200 | I41: -582.3363397 | J41: =E41-I41 -> 722424.0904
A42: 36 | B42: 2016-02-20 | C42: 31 | D42: 366 | E42: 722424.0904 | F42: 9790.228111 | G42: =IF(A42="",0,SUM($F$6:F42)-SUM($G$6:G41)) -> 9790.228111 | H42: 9200 | I42: -590.2281109 | J42: =E42-I42 -> 723014.3186
A43: 37 | B43: 2016-03-20 | C43: 29 | D43: 366 | E43: 723014.3186 | F43: 9166.083164 | G43: =IF(A43="",0,SUM($F$6:F43)-SUM($G$6:G42)) -> 9166.083164 | H43: 9200 | I43: 33.91683584 | J43: =E43-I43 -> 722980.4017
A44: 38 | B44: 2016-04-20 | C44: 31 | D44: 366 | E44: 722980.4017 | F44: 9797.767193 | G44: =IF(A44="",0,SUM($F$6:F44)-SUM($G$6:G43)) -> 9797.767193 | H44: 9200 | I44: -597.7671927 | J44: =E44-I44 -> 723578.1689
A45: 39 | B45: 2016-05-20 | C45: 30 | D45: 366 | E45: 723578.1689 | F45: 9489.549756 | G45: =IF(A45="",0,SUM($F$6:F45)-SUM($G$6:G44)) -> 9489.549756 | H45: 9200 | I45: -289.5497562 | J45: =E45-I45 -> 723867.7187
A46: 40 | B46: 2016-06-20 | C46: 31 | D46: 366 | E46: 723867.7187 | F46: 9809.792034 | G46: =IF(A46="",0,SUM($F$6:F46)-SUM($G$6:G45)) -> 9809.792034 | H46: 9200 | I46: -609.7920344 | J46: =E46-I46 -> 724477.5107
A47: 41 | B47: 2016-07-20 | C47: 30 | D47: 366 | E47: 724477.5107 | F47: 9501.344403 | G47: =IF(A47="",0,SUM($F$6:F47)-SUM($G$6:G46)) -> 9501.344403 | H47: 9200 | I47: -301.3444026 | J47: =E47-I47 -> 724778.8551
A48: 42 | B48: 2016-08-20 | C48: 31 | D48: 366 | E48: 724778.8551 | F48: 9822.139676 | G48: =IF(A48="",0,SUM($F$6:F48)-SUM($G$6:G47)) -> 9822.139676 | H48: 9200 | I48: -622.1396757 | J48: =E48-I48 -> 725400.9948
A49: 43 | B49: 2016-09-20 | C49: 31 | D49: 366 | E49: 725400.9948 | F49: 9830.570858 | G49: =IF(A49="",0,SUM($F$6:F49)-SUM($G$6:G48)) -> 9830.570858 | H49: 9200 | I49: -630.5708582 | J49: =E49-I49 -> 726031.5656
A50: 44 | B50: 2016-10-20 | C50: 30 | D50: 366 | E50: 726031.5656 | F50: 9521.725451 | G50: =IF(A50="",0,SUM($F$6:F50)-SUM($G$6:G49)) -> 9521.725451 | H50: 9200 | I50: -321.725451 | J50: =E50-I50 -> 726353.2911
A51: 45 | B51: 2016-11-20 | C51: 31 | D51: 366 | E51: 726353.2911 | F51: 9843.476295 | G51: =IF(A51="",0,SUM($F$6:F51)-SUM($G$6:G50)) -> 9843.476295 | H51: 9200 | I51: -643.4762945 | J51: =E51-I51 -> 726996.7674
A52: 46 | B52: 2016-12-20 | C52: 30 | D52: 366 | E52: 726996.7674 | F52: 9534.383835 | G52: =IF(A52="",0,SUM($F$6:F52)-SUM($G$6:G51)) -> 9534.383835 | H52: 9200 | I52: -334.3838345 | J52: =E52-I52 -> 727331.1512
A53: 47 | B53: 2017-01-20 | C53: 31 | D53: 365 | E53: 727331.1512 | F53: 9883.732904 | G53: =IF(A53="",0,SUM($F$6:F53)-SUM($G$6:G52)) -> 9883.732904 | H53: 9200 | I53: -683.7329042 | J53: =E53-I53 -> 728014.8841
A54: 48 | B54: 2017-02-20 | C54: 31 | D54: 365 | E54: 728014.8841 | F54: 9893.024179 | G54: =IF(A54="",0,SUM($F$6:F54)-SUM($G$6:G53)) -> 9893.024179 | H54: 9200 | I54: -693.0241787 | J54: =E54-I54 -> 728707.9083
A55: 49 | B55: 2017-03-20 | C55: 28 | D55: 365 | E55: 728707.9083 | F55: 8944.140902 | G55: =IF(A55="",0,SUM($F$6:F55)-SUM($G$6:G54)) -> 8944.140902 | H55: 9200 | I55: 255.8590981 | J55: =E55-I55 -> 728452.0492
A56: 50 | B56: 2017-04-20 | C56: 31 | D56: 365 | E56: 728452.0492 | F56: 9898.964833 | G56: =IF(A56="",0,SUM($F$6:F56)-SUM($G$6:G55)) -> 9898.964833 | H56: 9200 | I56: -698.964833 | J56: =E56-I56 -> 729151.014
A57: 51 | B57: 2017-05-20 | C57: 30 | D57: 365 | E57: 729151.014 | F57: 9588.835253 | G57: =IF(A57="",0,SUM($F$6:F57)-SUM($G$6:G56)) -> 9588.835253 | H57: 9200 | I57: -388.8352531 | J57: =E57-I57 -> 729539.8493
A58: 52 | B58: 2017-06-20 | C58: 31 | D58: 365 | E58: 729539.8493 | F58: 9913.746993 | G58: =IF(A58="",0,SUM($F$6:F58)-SUM($G$6:G57)) -> 9913.746993 | H58: 9200 | I58: -713.7469931 | J58: =E58-I58 -> 730253.5963
A59: 53 | B59: 2017-07-20 | C59: 30 | D59: 365 | E59: 730253.5963 | F59: 9603.334965 | G59: =IF(A59="",0,SUM($F$6:F59)-SUM($G$6:G58)) -> 9603.334965 | H59: 9200 | I59: -403.3349648 | J59: =E59-I59 -> 730656.9312
A60: 54 | B60: 2017-08-20 | C60: 31 | D60: 365 | E60: 730656.9312 | F60: 9928.927066 | G60: =IF(A60="",0,SUM($F$6:F60)-SUM($G$6:G59)) -> 9928.927066 | H60: 9200 | I60: -728.9270657 | J60: =E60-I60 -> 731385.8583
A61: 55 | B61: 2017-09-20 | C61: 31 | D61: 365 | E61: 731385.8583 | F61: 9938.832486 | G61: =IF(A61="",0,SUM($F$6:F61)-SUM($G$6:G60)) -> 9938.832486 | H61: 9200 | I61: -738.8324855 | J61: =E61-I61 -> 732124.6908
A62: 56 | B62: 2017-10-20 | C62: 30 | D62: 365 | E62: 732124.6908 | F62: 9627.941139 | G62: =IF(A62="",0,SUM($F$6:F62)-SUM($G$6:G61)) -> 9627.941139 | H62: 9200 | I62: -427.9411392 | J62: =E62-I62 -> 732552.6319
A63: 57 | B63: 2017-11-20 | C63: 31 | D63: 365 | E63: 732552.6319 | F63: 9954.68782 | G63: =IF(A63="",0,SUM($F$6:F63)-SUM($G$6:G62)) -> 9954.68782 | H63: 9200 | I63: -754.6878203 | J63: =E63-I63 -> 733307.3198
A64: 58 | B64: 2017-12-20 | C64: 30 | D64: 365 | E64: 733307.3198 | F64: 9643.49352 | G64: =IF(A64="",0,SUM($F$6:F64)-SUM($G$6:G63)) -> 9643.49352 | H64: 9200 | I64: -443.4935201 | J64: =E64-I64 -> 733750.8133
A65: 59 | B65: 2018-01-20 | C65: 31 | D65: 365 | E65: 733750.8133 | F65: 9970.969956 | G65: =IF(A65="",0,SUM($F$6:F65)-SUM($G$6:G64)) -> 9970.969956 | H65: 9200 | I65: -770.9699558 | J65: =E65-I65 -> 734521.7832
A66: 60 | B66: 2018-02-20 | C66: 31 | D66: 365 | E66: 734521.7832 | F66: 9981.446698 | G66: =IF(A66="",0,SUM($F$6:F66)-SUM($G$6:G65)) -> 9981.446698 | H66: 9200 | I66: -781.4466982 | J66: =E66-I66 -> 735303.2299
A67: 61 | B67: 2018-03-20 | C67: 28 | D67: 365 | E67: 735303.2299 | F67: 9025.091699 | G67: =IF(A67="",0,SUM($F$6:F67)-SUM($G$6:G66)) -> 9025.091699 | H67: 9200 | I67: 174.9083011 | J67: =E67-I67 -> 735128.3216
A68: 62 | B68: 2018-04-20 | C68: 31 | D68: 365 | E68: 735128.3216 | F68: 9989.688973 | G68: =IF(A68="",0,SUM($F$6:F68)-SUM($G$6:G67)) -> 9989.688973 | H68: 9200 | I68: -789.6889734 | J68: =E68-I68 -> 735918.0106
A69: 63 | B69: 2018-05-20 | C69: 30 | D69: 365 | E69: 735918.0106 | F69: 9677.825893 | G69: =IF(A69="",0,SUM($F$6:F69)-SUM($G$6:G68)) -> 9677.825893 | H69: 9200 | I69: -477.8258929 | J69: =E69-I69 -> 736395.8365
A70: 64 | B70: 2018-06-20 | C70: 31 | D70: 365 | E70: 736395.8365 | F70: 10006.91328 | G70: =IF(A70="",0,SUM($F$6:F70)-SUM($G$6:G69)) -> 10006.91328 | H70: 9200 | I70: -806.913285 | J70: =E70-I70 -> 737202.7498
A71: 65 | B71: =DATE(YEAR(B70),MONTH(B70)+1,DAY(B70)) -> 2018-07-20 | C71: 30 | D71: 365 | E71: 737202.7498 | F71: 9694.721093 | G71: =IF(A71="",0,SUM($F$6:F71)-SUM($G$6:G70)) -> 9694.721093 | H71: =IF(A71="",0,$C$3) -> 9200 | I71: -494.721093 | J71: =E71-I71 -> 737697.4709
A72: =ROW(A66) -> 66 | B72: 2018-08-20 | C72: =B72-B71 -> 31 | D72: =IF(MOD(YEAR(B72),4)=0,366,365) -> 365 | E72: =J71 -> 737697.4709 | F72: =E72*$C$1*C72/D72 -> 10024.60125 | G72: =IF(A72="",0,SUM($F$6:F72)-SUM($G$6:G71)) -> 10024.60125 | H72: 9200 | I72: =H72-G72 -> -824.601248 | J72: =E72-I72 -> 738522.0721
A73: 67 | B73: 2018-09-20 | C73: 31 | D73: 365 | E73: 738522.0721 | F73: 10035.80679 | G73: =IF(A73="",0,SUM($F$6:F73)-SUM($G$6:G72)) -> 10035.80679 | H73: 9200 | I73: -835.8067883 | J73: =E73-I73 -> 739357.8789
A74: 68 | B74: 2018-10-20 | C74: 30 | D74: 365 | E74: 739357.8789 | F74: 9723.062517 | G74: =IF(A74="",0,SUM($F$6:F74)-SUM($G$6:G73)) -> 9723.062517 | H74: 9200 | I74: -523.0625172 | J74: =E74-I74 -> 739880.9414
A75: 69 | B75: 2018-11-20 | C75: 31 | D75: 365 | E75: 739880.9414 | F75: 10054.27252 | G75: =IF(A75="",0,SUM($F$6:F75)-SUM($G$6:G74)) -> 10054.27252 | H75: 9200 | I75: -854.2725191 | J75: =E75-I75 -> 740735.2139
A76: 70 | B76: 2018-12-20 | C76: 30 | D76: 365 | E76: 740735.2139 | F76: 9741.175416 | G76: =IF(A76="",0,SUM($F$6:F76)-SUM($G$6:G75)) -> 9741.175416 | H76: 9200 | I76: -541.1754163 | J76: =E76-I76 -> 741276.3894
A77: 71 | B77: 2019-01-20 | C77: 31 | D77: 365 | E77: 741276.3894 | F77: 10073.23532 | G77: =IF(A77="",0,SUM($F$6:F77)-SUM($G$6:G76)) -> 10073.23532 | H77: 9200 | I77: -873.2353185 | J77: =E77-I77 -> 742149.6247
A78: 72 | B78: 2019-02-20 | C78: 31 | D78: 365 | E78: 742149.6247 | F78: 10085.10175 | G78: =IF(A78="",0,SUM($F$6:F78)-SUM($G$6:G77)) -> 10085.10175 | H78: 9200 | I78: -885.1017491 | J78: =E78-I78 -> 743034.7264
A79: 73 | B79: 2019-03-20 | C79: 28 | D79: 365 | E79: 743034.7264 | F79: 9119.987875 | G79: =IF(A79="",0,SUM($F$6:F79)-SUM($G$6:G78)) -> 9119.987875 | H79: 9200 | I79: 80.01212492 | J79: =E79-I79 -> 742954.7143
A80: 74 | B80: 2019-04-20 | C80: 31 | D80: 365 | E80: 742954.7143 | F80: 10096.04215 | G80: =IF(A80="",0,SUM($F$6:F80)-SUM($G$6:G79)) -> 10096.04215 | H80: 9200 | I80: -896.0421451 | J80: =E80-I80 -> 743850.7564
A81: 75 | B81: 2019-05-20 | C81: 30 | D81: 365 | E81: 743850.7564 | F81: 9782.146934 | G81: =IF(A81="",0,SUM($F$6:F81)-SUM($G$6:G80)) -> 9782.146934 | H81: 9200 | I81: -582.1469341 | J81: =E81-I81 -> 744432.9034
A82: 76 | B82: 2019-06-20 | C82: 31 | D82: 365 | E82: 744432.9034 | F82: 10116.12932 | G82: =IF(A82="",0,SUM($F$6:F82)-SUM($G$6:G81)) -> 10116.12932 | H82: 9200 | I82: -916.1293172 | J82: =E82-I82 -> 745349.0327
A83: 77 | B83: 2019-07-20 | C83: 30 | D83: 365 | E83: 745349.0327 | F83: 9801.850293 | G83: =IF(A83="",0,SUM($F$6:F83)-SUM($G$6:G82)) -> 9801.850293 | H83: 9200 | I83: -601.8502931 | J83: =E83-I83 -> 745950.883
A84: 78 | B84: 2019-08-20 | C84: 31 | D84: 365 | E84: 745950.883 | F84: 10136.7572 | G84: =IF(A84="",0,SUM($F$6:F84)-SUM($G$6:G83)) -> 10136.7572 | H84: 9200 | I84: -936.7572045 | J84: =E84-I84 -> 746887.6402
A85: 79 | B85: 2019-09-20 | C85: 31 | D85: 365 | E85: 746887.6402 | F85: 10149.48684 | G85: =IF(A85="",0,SUM($F$6:F85)-SUM($G$6:G84)) -> 10149.48684 | H85: 9200 | I85: -949.4868367 | J85: =E85-I85 -> 747837.127
A86: 80 | B86: 2019-10-20 | C86: 30 | D86: 365 | E86: 747837.127 | F86: 9834.570438 | G86: =IF(A86="",0,SUM($F$6:F86)-SUM($G$6:G85)) -> 9834.570438 | H86: 9200 | I86: -634.5704377 | J86: =E86-I86 -> 748471.6975
A87: 81 | B87: 2019-11-20 | C87: 31 | D87: 365 | E87: 748471.6975 | F87: 10171.01266 | G87: =IF(A87="",0,SUM($F$6:F87)-SUM($G$6:G86)) -> 10171.01266 | H87: 9200 | I87: -971.0126561 | J87: =E87-I87 -> 749442.7101
A88: 82 | B88: 2019-12-20 | C88: 30 | D88: 365 | E88: 749442.7101 | F88: 9855.684955 | G88: =IF(A88="",0,SUM($F$6:F88)-SUM($G$6:G87)) -> 9855.684955 | H88: 9200 | I88: -655.6849551 | J88: =E88-I88 -> 750098.3951
A89: 83 | B89: 2020-01-20 | C89: 31 | D89: 366 | E89: 750098.3951 | F89: 10165.26787 | G89: =IF(A89="",0,SUM($F$6:F89)-SUM($G$6:G88)) -> 10165.26787 | H89: 9200 | I89: -965.2678678 | J89: =E89-I89 -> 751063.663
A90: 84 | B90: 2020-02-20 | C90: 31 | D90: 366 | E90: 751063.663 | F90: 10178.34909 | G90: =IF(A90="",0,SUM($F$6:F90)-SUM($G$6:G89)) -> 10178.34909 | H90: 9200 | I90: -978.3490936 | J90: =E90-I90 -> 752042.012
A91: 85 | B91: 2020-03-20 | C91: 29 | D91: 366 | E91: 752042.012 | F91: 9534.084524 | G91: =IF(A91="",0,SUM($F$6:F91)-SUM($G$6:G90)) -> 9534.084524 | H91: 9200 | I91: -334.0845243 | J91: =E91-I91 -> 752376.0966
A92: 86 | B92: 2020-04-20 | C92: 31 | D92: 366 | E92: 752376.0966 | F92: 10196.13508 | G92: =IF(A92="",0,SUM($F$6:F92)-SUM($G$6:G91)) -> 10196.13508 | H92: 9200 | I92: -996.1350792 | J92: =E92-I92 -> 753372.2316
A93: 87 | B93: 2020-05-20 | C93: 30 | D93: 366 | E93: 753372.2316 | F93: 9880.291563 | G93: =IF(A93="",0,SUM($F$6:F93)-SUM($G$6:G92)) -> 9880.291563 | H93: 9200 | I93: -680.2915626 | J93: =E93-I93 -> 754052.5232
A94: 88 | B94: 2020-06-20 | C94: 31 | D94: 366 | E94: 754052.5232 | F94: 10218.85387 | G94: =IF(A94="",0,SUM($F$6:F94)-SUM($G$6:G93)) -> 10218.85387 | H94: 9200 | I94: -1018.853866 | J94: =E94-I94 -> 755071.3771
A95: 89 | B95: 2020-07-20 | C95: 30 | D95: 366 | E95: 755071.3771 | F95: 9902.575437 | G95: =IF(A95="",0,SUM($F$6:F95)-SUM($G$6:G94)) -> 9902.575437 | H95: 9200 | I95: -702.5754371 | J95: =E95-I95 -> 755773.9525
A96: 90 | B96: 2020-08-20 | C96: 31 | D96: 366 | E96: 755773.9525 | F96: 10242.18253 | G96: =IF(A96="",0,SUM($F$6:F96)-SUM($G$6:G95)) -> 10242.18253 | H96: 9200 | I96: -1042.182526 | J96: =E96-I96 -> 756816.135
A97: 91 | B97: 2020-09-20 | C97: 31 | D97: 366 | E97: 756816.135 | F97: 10256.30609 | G97: =IF(A97="",0,SUM($F$6:F97)-SUM($G$6:G96)) -> 10256.30609 | H97: 9200 | I97: -1056.306092 | J97: =E97-I97 -> 757872.4411
A98: 92 | B98: 2020-10-20 | C98: 30 | D98: 366 | E98: 757872.4411 | F98: 9939.310703 | G98: =IF(A98="",0,SUM($F$6:F98)-SUM($G$6:G97)) -> 9939.310703 | H98: 9200 | I98: -739.3107034 | J98: =E98-I98 -> 758611.7518
A99: 93 | B99: 2020-11-20 | C99: 31 | D99: 366 | E99: 758611.7518 | F99: 10280.64013 | G99: =IF(A99="",0,SUM($F$6:F99)-SUM($G$6:G98)) -> 10280.64013 | H99: 9200 | I99: -1080.640134 | J99: =E99-I99 -> 759692.392
A100: 94 | B100: 2020-12-20 | C100: 30 | D100: 366 | E100: 759692.392 | F100: 9963.178911 | G100: =IF(A100="",0,SUM($F$6:F100)-SUM($G$6:G99)) -> 9963.178911 | H100: 9200 | I100: -763.1789111 | J100: =E100-I100 -> 760455.5709
A101: 95 | B101: 2021-01-20 | C101: 31 | D101: 365 | E101: 760455.5709 | F101: 10333.862 | G101: =IF(A101="",0,SUM($F$6:F101)-SUM($G$6:G100)) -> 10333.862 | H101: 9200 | I101: -1133.862004 | J101: =E101-I101 -> 761589.4329
A102: 96 | B102: 2021-02-20 | C102: 31 | D102: 365 | E102: 761589.4329 | F102: 10349.2701 | G102: =IF(A102="",0,SUM($F$6:F102)-SUM($G$6:G101)) -> 10349.2701 | H102: 9200 | I102: -1149.270102 | J102: =E102-I102 -> 762738.703
A103: 97 | B103: 2021-03-20 | C103: 28 | D103: 365 | E103: 762738.703 | F103: 9361.833944 | G103: =IF(A103="",0,SUM($F$6:F103)-SUM($G$6:G102)) -> 9361.833944 | H103: 9200 | I103: -161.8339435 | J103: =E103-I103 -> 762900.5369
A104: 98 | B104: 2021-04-20 | C104: 31 | D104: 365 | E104: 762900.5369 | F104: 10367.08675 | G104: =IF(A104="",0,SUM($F$6:F104)-SUM($G$6:G103)) -> 10367.08675 | H104: 9200 | I104: -1167.086748 | J104: =E104-I104 -> 764067.6237
A105: 99 | B105: 2021-05-20 | C105: 30 | D105: 365 | E105: 764067.6237 | F105: 10048.01259 | G105: =IF(A105="",0,SUM($F$6:F105)-SUM($G$6:G104)) -> 10048.01259 | H105: 9200 | I105: -848.0125854 | J105: =E105-I105 -> 764915.6363
A106: 100 | B106: 2021-06-20 | C106: 31 | D106: 365 | E106: 764915.6363 | F106: 10394.47002 | G106: =IF(A106="",0,SUM($F$6:F106)-SUM($G$6:G105)) -> 10394.47002 | H106: 9200 | I106: -1194.470016 | J106: =E106-I106 -> 766110.1063
A107: 101 | B107: 2021-07-20 | C107: 30 | D107: 365 | E107: 766110.1063 | F107: 10074.87263 | G107: =IF(A107="",0,SUM($F$6:F107)-SUM($G$6:G106)) -> 10074.87263 | H107: 9200 | I107: -874.8726305 | J107: =E107-I107 -> 766984.9789
A108: 102 | B108: 2021-08-20 | C108: 31 | D108: 365 | E108: 766984.9789 | F108: 10422.5904 | G108: =IF(A108="",0,SUM($F$6:F108)-SUM($G$6:G107)) -> 10422.5904 | H108: 9200 | I108: -1222.590398 | J108: =E108-I108 -> 768207.5693
A109: 103 | B109: 2021-09-20 | C109: 31 | D109: 365 | E109: 768207.5693 | F109: 10439.20423 | G109: =IF(A109="",0,SUM($F$6:F109)-SUM($G$6:G108)) -> 10439.20423 | H109: 9200 | I109: -1239.20423 | J109: =E109-I109 -> 769446.7735
A110: 104 | B110: 2021-10-20 | C110: 30 | D110: 365 | E110: 769446.7735 | F110: 10118.75209 | G110: =IF(A110="",0,SUM($F$6:F110)-SUM($G$6:G109)) -> 10118.75209 | H110: 9200 | I110: -918.7520904 | J110: =E110-I110 -> 770365.5256
A111: 105 | B111: 2021-11-20 | C111: 31 | D111: 365 | E111: 770365.5256 | F111: 10468.52879 | G111: =IF(A111="",0,SUM($F$6:F111)-SUM($G$6:G110)) -> 10468.52879 | H111: 9200 | I111: -1268.528787 | J111: =E111-I111 -> 771634.0544
A112: 106 | B112: 2021-12-20 | C112: 30 | D112: 365 | E112: 771634.0544 | F112: 10147.51633 | G112: =IF(A112="",0,SUM($F$6:F112)-SUM($G$6:G111)) -> 10147.51633 | H112: 9200 | I112: -947.5163321 | J112: =E112-I112 -> 772581.5707
A113: 107 | B113: 2022-01-20 | C113: 31 | D113: 365 | E113: 772581.5707 | F113: 10498.64271 | G113: =IF(A113="",0,SUM($F$6:F113)-SUM($G$6:G112)) -> 10498.64271 | H113: 9200 | I113: -1298.642715 | J113: =E113-I113 -> 773880.2135
A114: 108 | B114: 2022-02-20 | C114: 31 | D114: 365 | E114: 773880.2135 | F114: 10516.29002 | G114: =IF(A114="",0,SUM($F$6:F114)-SUM($G$6:G113)) -> 10516.29002 | H114: 9200 | I114: -1316.290024 | J114: =E114-I114 -> 775196.5035
A115: 109 | B115: 2022-03-20 | C115: 28 | D115: 365 | E115: 775196.5035 | F115: 9514.740646 | G115: =IF(A115="",0,SUM($F$6:F115)-SUM($G$6:G114)) -> 9514.740646 | H115: 9200 | I115: -314.7406455 | J115: =E115-I115 -> 775511.2441
A116: 110 | B116: 2022-04-20 | C116: 31 | D116: 365 | E116: 775511.2441 | F116: 10538.45417 | G116: =IF(A116="",0,SUM($F$6:F116)-SUM($G$6:G115)) -> 10538.45417 | H116: 9200 | I116: -1338.454167 | J116: =E116-I116 -> 776849.6983
A117: 111 | B117: 2022-05-20 | C117: 30 | D117: 365 | E117: 776849.6983 | F117: 10216.10562 | G117: =IF(A117="",0,SUM($F$6:F117)-SUM($G$6:G116)) -> 10216.10562 | H117: 9200 | I117: -1016.105621 | J117: =E117-I117 -> 777865.8039
A118: 112 | B118: 2022-06-20 | C118: 31 | D118: 365 | E118: 777865.8039 | F118: 10570.45038 | G118: =IF(A118="",0,SUM($F$6:F118)-SUM($G$6:G117)) -> 10570.45038 | H118: 9200 | I118: -1370.450377 | J118: =E118-I118 -> 779236.2543
A119: 113 | B119: 2022-07-20 | C119: 30 | D119: 365 | E119: 779236.2543 | F119: 10247.49047 | G119: =IF(A119="",0,SUM($F$6:F119)-SUM($G$6:G118)) -> 10247.49047 | H119: 9200 | I119: -1047.490467 | J119: =E119-I119 -> 780283.7448
A120: 114 | B120: 2022-08-20 | C120: 31 | D120: 365 | E120: 780283.7448 | F120: 10603.30787 | G120: =IF(A120="",0,SUM($F$6:F120)-SUM($G$6:G119)) -> 10603.30787 | H120: 9200 | I120: -1403.307874 | J120: =E120-I120 -> 781687.0526
A121: 115 | B121: 2022-09-20 | C121: 31 | D121: 365 | E121: 781687.0526 | F121: 10622.37748 | G121: =IF(A121="",0,SUM($F$6:F121)-SUM($G$6:G120)) -> 10622.37748 | H121: 9200 | I121: -1422.377482 | J121: =E121-I121 -> 783109.4301
A122: 116 | B122: 2022-10-20 | C122: 30 | D122: 365 | E122: 783109.4301 | F122: 10298.42538 | G122: =IF(A122="",0,SUM($F$6:F122)-SUM($G$6:G121)) -> 10298.42538 | H122: 9200 | I122: -1098.425382 | J122: =E122-I122 -> 784207.8555
A123: 117 | B123: 2022-11-20 | C123: 31 | D123: 365 | E123: 784207.8555 | F123: 10656.63278 | G123: =IF(A123="",0,SUM($F$6:F123)-SUM($G$6:G122)) -> 10656.63278 | H123: 9200 | I123: -1456.632776 | J123: =E123-I123 -> 785664.4883
A124: 118 | B124: 2022-12-20 | C124: 30 | D124: 365 | E124: 785664.4883 | F124: 10332.02615 | G124: =IF(A124="",0,SUM($F$6:F124)-SUM($G$6:G123)) -> 10332.02615 | H124: 9200 | I124: -1132.026147 | J124: =E124-I124 -> 786796.5144
A125: 119 | B125: 2023-01-20 | C125: 31 | D125: 365 | E125: 786796.5144 | F125: 10691.81017 | G125: =IF(A125="",0,SUM($F$6:F125)-SUM($G$6:G124)) -> 10691.81017 | H125: 9200 | I125: -1491.810169 | J125: =E125-I125 -> 788288.3246
A126: 120 | B126: 2023-02-20 | C126: 31 | D126: 365 | E126: 788288.3246 | F126: 10712.08244 | G126: =IF(A126="",0,SUM($F$6:F126)-SUM($G$6:G125)) -> 10712.08244 | H126: 9200 | I126: -1512.082438 | J126: =E126-I126 -> 789800.407
A127: 121 | B127: 2023-03-20 | C127: 28 | D127: 365 | E127: 789800.407 | F127: 9693.988558 | G127: =IF(A127="",0,SUM($F$6:F127)-SUM($G$6:G126)) -> 9693.988558 | H127: 9200 | I127: -493.9885576 | J127: =E127-I127 -> 790294.3956
A128: 122 | B128: 2023-04-20 | C128: 31 | D128: 365 | E128: 790294.3956 | F128: 10739.34302 | G128: =IF(A128="",0,SUM($F$6:F128)-SUM($G$6:G127)) -> 10739.34302 | H128: 9200 | I128: -1539.34302 | J128: =E128-I128 -> 791833.7386
A129: 123 | B129: 2023-05-20 | C129: 30 | D129: 365 | E129: 791833.7386 | F129: 10413.15601 | G129: =IF(A129="",0,SUM($F$6:F129)-SUM($G$6:G128)) -> 10413.15601 | H129: 9200 | I129: -1213.156015 | J129: =E129-I129 -> 793046.8946
A130: 124 | B130: 2023-06-20 | C130: 31 | D130: 365 | E130: 793046.8946 | F130: 10776.74684 | G130: =IF(A130="",0,SUM($F$6:F130)-SUM($G$6:G129)) -> 10776.74684 | H130: 9200 | I130: -1576.746842 | J130: =E130-I130 -> 794623.6415
A131: 125 | B131: 2023-07-20 | C131: 30 | D131: 365 | E131: 794623.6415 | F131: 10449.84515 | G131: =IF(A131="",0,SUM($F$6:F131)-SUM($G$6:G130)) -> 10449.84515 | H131: 9200 | I131: -1249.845148 | J131: =E131-I131 -> 795873.4866
A132: 126 | B132: 2023-08-20 | C132: 31 | D132: 365 | E132: 795873.4866 | F132: 10815.15752 | G132: =IF(A132="",0,SUM($F$6:F132)-SUM($G$6:G131)) -> 10815.15752 | H132: 9200 | I132: -1615.157517 | J132: =E132-I132 -> 797488.6441
A133: 127 | B133: 2023-09-20 | C133: 31 | D133: 365 | E133: 797488.6441 | F133: 10837.10596 | G133: =IF(A133="",0,SUM($F$6:F133)-SUM($G$6:G132)) -> 10837.10596 | H133: 9200 | I133: -1637.105959 | J133: =E133-I133 -> 799125.7501
A134: 128 | B134: 2023-10-20 | C134: 30 | D134: 365 | E134: 799125.7501 | F134: 10509.05096 | G134: =IF(A134="",0,SUM($F$6:F134)-SUM($G$6:G133)) -> 10509.05096 | H134: 9200 | I134: -1309.05096 | J134: =E134-I134 -> 800434.8011
A135: 129 | B135: =DATE(YEAR(B134),MONTH(B134)+1,DAY(B134)) -> 2023-11-20 | C135: 31 | D135: 365 | E135: 800434.8011 | F135: 10877.14141 | G135: =IF(A135="",0,SUM($F$6:F135)-SUM($G$6:G134)) -> 10877.14141 | H135: =IF(A135="",0,$C$3) -> 9200 | I135: -1677.141406 | J135: =E135-I135 -> 802111.9425
A136: =ROW(A130) -> 130 | B136: 2023-12-20 | C136: =B136-B135 -> 30 | D136: =IF(MOD(YEAR(B136),4)=0,366,365) -> 365 | E136: =J135 -> 802111.9425 | F136: =E136*$C$1*C136/D136 -> 10548.32144 | G136: =IF(A136="",0,SUM($F$6:F136)-SUM($G$6:G135)) -> 10548.32144 | H136: 9200 | I136: =H136-G136 -> -1348.321435 | J136: =E136-I136 -> 803460.2639
A137: 131 | B137: 2024-01-20 | C137: 31 | D137: 366 | E137: 803460.2639 | F137: 10888.42325 | G137: =IF(A137="",0,SUM($F$6:F137)-SUM($G$6:G136)) -> 10888.42325 | H137: 9200 | I137: -1688.423248 | J137: =E137-I137 -> 805148.6871
A138: 132 | B138: 2024-02-20 | C138: 31 | D138: 366 | E138: 805148.6871 | F138: 10911.30461 | G138: =IF(A138="",0,SUM($F$6:F138)-SUM($G$6:G137)) -> 10911.30461 | H138: 9200 | I138: -1711.304613 | J138: =E138-I138 -> 806859.9918
A139: 133 | B139: 2024-03-20 | C139: 29 | D139: 366 | E139: 806859.9918 | F139: 10229.0447 | G139: =IF(A139="",0,SUM($F$6:F139)-SUM($G$6:G138)) -> 10229.0447 | H139: 9200 | I139: -1029.044704 | J139: =E139-I139 -> 807889.0365
A140: 134 | B140: 2024-04-20 | C140: 31 | D140: 366 | E140: 807889.0365 | F140: 10948.44159 | G140: =IF(A140="",0,SUM($F$6:F140)-SUM($G$6:G139)) -> 10948.44159 | H140: 9200 | I140: -1748.441587 | J140: =E140-I140 -> 809637.478
A141: 135 | B141: 2024-05-20 | C141: 30 | D141: 366 | E141: 809637.478 | F141: 10618.19643 | G141: =IF(A141="",0,SUM($F$6:F141)-SUM($G$6:G140)) -> 10618.19643 | H141: 9200 | I141: -1418.196433 | J141: =E141-I141 -> 811055.6745
A142: 136 | B142: 2024-06-20 | C142: 31 | D142: 366 | E142: 811055.6745 | F142: 10991.35559 | G142: =IF(A142="",0,SUM($F$6:F142)-SUM($G$6:G141)) -> 10991.35559 | H142: 9200 | I142: -1791.355589 | J142: =E142-I142 -> 812847.0301
A143: 137 | B143: 2024-07-20 | C143: 30 | D143: 366 | E143: 812847.0301 | F143: 10660.28892 | G143: =IF(A143="",0,SUM($F$6:F143)-SUM($G$6:G142)) -> 10660.28892 | H143: 9200 | I143: -1460.288919 | J143: =E143-I143 -> 814307.319
A144: 138 | B144: 2024-08-20 | C144: 31 | D144: 366 | E144: 814307.319 | F144: 11035.42159 | G144: =IF(A144="",0,SUM($F$6:F144)-SUM($G$6:G143)) -> 11035.42159 | H144: 9200 | I144: -1835.421591 | J144: =E144-I144 -> 816142.7406
A145: 139 | B145: 2024-09-20 | C145: 31 | D145: 366 | E145: 816142.7406 | F145: 11060.29506 | G145: =IF(A145="",0,SUM($F$6:F145)-SUM($G$6:G144)) -> 11060.29506 | H145: 9200 | I145: -1860.295064 | J145: =E145-I145 -> 818003.0356
A146: 140 | B146: 2024-10-20 | C146: 30 | D146: 366 | E146: 818003.0356 | F146: 10727.90866 | G146: =IF(A146="",0,SUM($F$6:F146)-SUM($G$6:G145)) -> 10727.90866 | H146: 9200 | I146: -1527.908664 | J146: =E146-I146 -> 819530.9443
A147: 141 | B147: 2024-11-20 | C147: 31 | D147: 366 | E147: 819530.9443 | F147: 11106.2117 | G147: =IF(A147="",0,SUM($F$6:F147)-SUM($G$6:G146)) -> 11106.2117 | H147: 9200 | I147: -1906.211704 | J147: =E147-I147 -> 821437.156
A148: 142 | B148: 2024-12-20 | C148: 30 | D148: 366 | E148: 821437.156 | F148: 10772.94631 | G148: =IF(A148="",0,SUM($F$6:F148)-SUM($G$6:G147)) -> 10772.94631 | H148: 9200 | I148: -1572.946308 | J148: =E148-I148 -> 823010.1023
A149: 143 | B149: 2025-01-20 | C149: 31 | D149: 365 | E149: 823010.1023 | F149: 11183.9181 | G149: =IF(A149="",0,SUM($F$6:F149)-SUM($G$6:G148)) -> 11183.9181 | H149: 9200 | I149: -1983.918103 | J149: =E149-I149 -> 824994.0204
A150: 144 | B150: 2025-02-20 | C150: 31 | D150: 365 | E150: 824994.0204 | F150: 11210.87765 | G150: =IF(A150="",0,SUM($F$6:F150)-SUM($G$6:G149)) -> 11210.87765 | H150: 9200 | I150: -2010.877647 | J150: =E150-I150 -> 827004.8981
A151: 145 | B151: 2025-03-20 | C151: 28 | D151: 365 | E151: 827004.8981 | F151: 10150.63546 | G151: =IF(A151="",0,SUM($F$6:F151)-SUM($G$6:G150)) -> 10150.63546 | H151: 9200 | I151: -950.6354612 | J151: =E151-I151 -> 827955.5335
A152: 146 | B152: 2025-04-20 | C152: 31 | D152: 365 | E152: 827955.5335 | F152: 11251.12177 | G152: =IF(A152="",0,SUM($F$6:F152)-SUM($G$6:G151)) -> 11251.12177 | H152: 9200 | I152: -2051.121771 | J152: =E152-I152 -> 830006.6553
A153: 147 | B153: 2025-05-20 | C153: 30 | D153: 365 | E153: 830006.6553 | F153: 10915.15601 | G153: =IF(A153="",0,SUM($F$6:F153)-SUM($G$6:G152)) -> 10915.15601 | H153: 9200 | I153: -1715.156015 | J153: =E153-I153 -> 831721.8113
A154: 148 | B154: 2025-06-20 | C154: 31 | D154: 365 | E154: 831721.8113 | F154: 11302.30187 | G154: =IF(A154="",0,SUM($F$6:F154)-SUM($G$6:G153)) -> 11302.30187 | H154: 9200 | I154: -2102.301874 | J154: =E154-I154 -> 833824.1132
A155: 149 | B155: 2025-07-20 | C155: 30 | D155: 365 | E155: 833824.1132 | F155: 10965.3582 | G155: =IF(A155="",0,SUM($F$6:F155)-SUM($G$6:G154)) -> 10965.3582 | H155: 9200 | I155: -1765.358201 | J155: =E155-I155 -> 835589.4714
A156: 150 | B156: 2025-08-20 | C156: 31 | D156: 365 | E156: 835589.4714 | F156: 11354.85967 | G156: =IF(A156="",0,SUM($F$6:F156)-SUM($G$6:G155)) -> 11354.85967 | H156: 9200 | I156: -2154.859666 | J156: =E156-I156 -> 837744.3311
A157: 151 | B157: 2025-09-20 | C157: 31 | D157: 365 | E157: 837744.3311 | F157: 11384.14214 | G157: =IF(A157="",0,SUM($F$6:F157)-SUM($G$6:G156)) -> 11384.14214 | H157: 9200 | I157: -2184.142143 | J157: =E157-I157 -> 839928.4732
A158: 152 | B158: 2025-10-20 | C158: 30 | D158: 365 | E158: 839928.4732 | F158: 11045.63472 | G158: =IF(A158="",0,SUM($F$6:F158)-SUM($G$6:G157)) -> 11045.63472 | H158: 9200 | I158: -1845.634716 | J158: =E158-I158 -> 841774.1079
A159: 153 | B159: 2025-11-20 | C159: 31 | D159: 365 | E159: 841774.1079 | F159: 11438.90295 | G159: =IF(A159="",0,SUM($F$6:F159)-SUM($G$6:G158)) -> 11438.90295 | H159: 9200 | I159: -2238.902946 | J159: =E159-I159 -> 844013.0109
A160: 154 | B160: 2025-12-20 | C160: 30 | D160: 365 | E160: 844013.0109 | F160: 11099.34918 | G160: =IF(A160="",0,SUM($F$6:F160)-SUM($G$6:G159)) -> 11099.34918 | H160: 9200 | I160: -1899.349184 | J160: =E160-I160 -> 845912.36
A161: 155 | B161: 2026-01-20 | C161: 31 | D161: 365 | E161: 845912.36 | F161: 11495.13782 | G161: =IF(A161="",0,SUM($F$6:F161)-SUM($G$6:G160)) -> 11495.13782 | H161: 9200 | I161: -2295.137824 | J161: =E161-I161 -> 848207.4979
A162: 156 | B162: 2026-02-20 | C162: 31 | D162: 365 | E162: 848207.4979 | F162: 11526.32655 | G162: =IF(A162="",0,SUM($F$6:F162)-SUM($G$6:G161)) -> 11526.32655 | H162: 9200 | I162: -2326.326546 | J162: =E162-I162 -> 850533.8244
A163: 157 | B163: 2026-03-20 | C163: 28 | D163: 365 | E163: 850533.8244 | F163: 10439.42886 | G163: =IF(A163="",0,SUM($F$6:F163)-SUM($G$6:G162)) -> 10439.42886 | H163: 9200 | I163: -1239.428859 | J163: =E163-I163 -> 851773.2533
A164: 158 | B164: 2026-04-20 | C164: 31 | D164: 365 | E164: 851773.2533 | F164: 11574.78174 | G164: =IF(A164="",0,SUM($F$6:F164)-SUM($G$6:G163)) -> 11574.78174 | H164: 9200 | I164: -2374.781743 | J164: =E164-I164 -> 854148.035
A165: 159 | B165: 2026-05-20 | C165: 30 | D165: 365 | E165: 854148.035 | F165: 11232.63169 | G165: =IF(A165="",0,SUM($F$6:F165)-SUM($G$6:G164)) -> 11232.63169 | H165: 9200 | I165: -2032.631693 | J165: =E165-I165 -> 856180.6667
A166: 160 | B166: 2026-06-20 | C166: 31 | D166: 365 | E166: 856180.6667 | F166: 11634.67427 | G166: =IF(A166="",0,SUM($F$6:F166)-SUM($G$6:G165)) -> 11634.67427 | H166: 9200 | I166: -2434.674265 | J166: =E166-I166 -> 858615.341
A167: 161 | B167: 2026-07-20 | C167: 30 | D167: 365 | E167: 858615.341 | F167: 11291.37983 | G167: =IF(A167="",0,SUM($F$6:F167)-SUM($G$6:G166)) -> 11291.37983 | H167: 9200 | I167: -2091.379827 | J167: =E167-I167 -> 860706.7208
A168: 162 | B168: 2026-08-20 | C168: 31 | D168: 365 | E168: 860706.7208 | F168: 11696.179 | G168: =IF(A168="",0,SUM($F$6:F168)-SUM($G$6:G167)) -> 11696.179 | H168: 9200 | I168: -2496.179 | J168: =E168-I168 -> 863202.8998
A169: 163 | B169: 2026-09-20 | C169: 31 | D169: 365 | E169: 863202.8998 | F169: 11730.09968 | G169: =IF(A169="",0,SUM($F$6:F169)-SUM($G$6:G168)) -> 11730.09968 | H169: 9200 | I169: -2530.09968 | J169: =E169-I169 -> 865732.9995
A170: 164 | B170: 2026-10-20 | C170: 30 | D170: 365 | E170: 865732.9995 | F170: 11384.98191 | G170: =IF(A170="",0,SUM($F$6:F170)-SUM($G$6:G169)) -> 11384.98191 | H170: 9200 | I170: -2184.981911 | J170: =E170-I170 -> 867917.9814
A171: 165 | B171: 2026-11-20 | C171: 31 | D171: 365 | E171: 867917.9814 | F171: 11794.17312 | G171: =IF(A171="",0,SUM($F$6:F171)-SUM($G$6:G170)) -> 11794.17312 | H171: 9200 | I171: -2594.173117 | J171: =E171-I171 -> 870512.1545
A172: 166 | B172: 2026-12-20 | C172: 30 | D172: 365 | E172: 870512.1545 | F172: 11447.83107 | G172: =IF(A172="",0,SUM($F$6:F172)-SUM($G$6:G171)) -> 11447.83107 | H172: 9200 | I172: -2247.831073 | J172: =E172-I172 -> 872759.9856
A173: 167 | B173: 2027-01-20 | C173: 31 | D173: 365 | E173: 872759.9856 | F173: 11859.97131 | G173: =IF(A173="",0,SUM($F$6:F173)-SUM($G$6:G172)) -> 11859.97131 | H173: 9200 | I173: -2659.971311 | J173: =E173-I173 -> 875419.9569
A174: 168 | B174: 2027-02-20 | C174: 31 | D174: 365 | E174: 875419.9569 | F174: 11896.11777 | G174: =IF(A174="",0,SUM($F$6:F174)-SUM($G$6:G173)) -> 11896.11777 | H174: 9200 | I174: -2696.11777 | J174: =E174-I174 -> 878116.0747
A175: 169 | B175: 2027-03-20 | C175: 28 | D175: 365 | E175: 878116.0747 | F175: 10777.97264 | G175: =IF(A175="",0,SUM($F$6:F175)-SUM($G$6:G174)) -> 10777.97264 | H175: 9200 | I175: -1577.972642 | J175: =E175-I175 -> 879694.0473
A176: 170 | B176: 2027-04-20 | C176: 31 | D176: 365 | E176: 879694.0473 | F176: 11954.19856 | G176: =IF(A176="",0,SUM($F$6:F176)-SUM($G$6:G175)) -> 11954.19856 | H176: 9200 | I176: -2754.198561 | J176: =E176-I176 -> 882448.2459
A177: 171 | B177: 2027-05-20 | C177: 30 | D177: 365 | E177: 882448.2459 | F177: 11604.79885 | G177: =IF(A177="",0,SUM($F$6:F177)-SUM($G$6:G176)) -> 11604.79885 | H177: 9200 | I177: -2404.79885 | J177: =E177-I177 -> 884853.0447
A178: 172 | B178: 2027-06-20 | C178: 31 | D178: 365 | E178: 884853.0447 | F178: 12024.30439 | G178: =IF(A178="",0,SUM($F$6:F178)-SUM($G$6:G177)) -> 12024.30439 | H178: 9200 | I178: -2824.304388 | J178: =E178-I178 -> 887677.3491
A179: 173 | B179: 2027-07-20 | C179: 30 | D179: 365 | E179: 887677.3491 | F179: 11673.56514 | G179: =IF(A179="",0,SUM($F$6:F179)-SUM($G$6:G178)) -> 11673.56514 | H179: 9200 | I179: -2473.565139 | J179: =E179-I179 -> 890150.9142
A180: 174 | B180: 2027-08-20 | C180: 31 | D180: 365 | E180: 890150.9142 | F180: 12096.29736 | G180: =IF(A180="",0,SUM($F$6:F180)-SUM($G$6:G179)) -> 12096.29736 | H180: 9200 | I180: -2896.297355 | J180: =E180-I180 -> 893047.2116
A181: 175 | B181: 2027-09-20 | C181: 31 | D181: 365 | E181: 893047.2116 | F181: 12135.65526 | G181: =IF(A181="",0,SUM($F$6:F181)-SUM($G$6:G180)) -> 12135.65526 | H181: 9200 | I181: -2935.655259 | J181: =E181-I181 -> 895982.8669
A182: 176 | B182: 2027-10-20 | C182: 30 | D182: 365 | E182: 895982.8669 | F182: 11782.78839 | G182: =IF(A182="",0,SUM($F$6:F182)-SUM($G$6:G181)) -> 11782.78839 | H182: 9200 | I182: -2582.788386 | J182: =E182-I182 -> 898565.6552
A183: 177 | B183: 2027-11-20 | C183: 31 | D183: 365 | E183: 898565.6552 | F183: 12210.64562 | G183: =IF(A183="",0,SUM($F$6:F183)-SUM($G$6:G182)) -> 12210.64562 | H183: 9200 | I183: -3010.645616 | J183: =E183-I183 -> 901576.3009
A184: 178 | B184: 2027-12-20 | C184: 30 | D184: 365 | E184: 901576.3009 | F184: 11856.34587 | G184: =IF(A184="",0,SUM($F$6:F184)-SUM($G$6:G183)) -> 11856.34587 | H184: 9200 | I184: -2656.345874 | J184: =E184-I184 -> 904232.6467
A185: 179 | B185: 2028-01-20 | C185: 31 | D185: 366 | E185: 904232.6467 | F185: 12254.08177 | G185: =IF(A185="",0,SUM($F$6:F185)-SUM($G$6:G184)) -> 12254.08177 | H185: 9200 | I185: -3054.08177 | J185: =E185-I185 -> 907286.7285
A186: 180 | B186: 2028-02-20 | C186: 31 | D186: 366 | E186: 907286.7285 | F186: 12295.47042 | G186: =IF(A186="",0,SUM($F$6:F186)-SUM($G$6:G185)) -> 12295.47042 | H186: 9200 | I186: -3095.470419 | J186: =E186-I186 -> 910382.1989
A187: 181 | B187: 2028-03-20 | C187: 29 | D187: 366 | E187: 910382.1989 | F187: 11541.45739 | G187: =IF(A187="",0,SUM($F$6:F187)-SUM($G$6:G186)) -> 11541.45739 | H187: 9200 | I187: -2341.457385 | J187: =E187-I187 -> 912723.6563
A188: 182 | B188: 2028-04-20 | C188: 31 | D188: 366 | E188: 912723.6563 | F188: 12369.15119 | G188: =IF(A188="",0,SUM($F$6:F188)-SUM($G$6:G187)) -> 12369.15119 | H188: 9200 | I188: -3169.151189 | J188: =E188-I188 -> 915892.8075
A189: 183 | B189: 2028-05-20 | C189: 30 | D189: 366 | E189: 915892.8075 | F189: 12011.70895 | G189: =IF(A189="",0,SUM($F$6:F189)-SUM($G$6:G188)) -> 12011.70895 | H189: 9200 | I189: -2811.708951 | J189: =E189-I189 -> 918704.5165
A190: 184 | B190: 2028-06-20 | C190: 31 | D190: 366 | E190: 918704.5165 | F190: 12450.20328 | G190: =IF(A190="",0,SUM($F$6:F190)-SUM($G$6:G189)) -> 12450.20328 | H190: 9200 | I190: -3250.203283 | J190: =E190-I190 -> 921954.7197
A191: 185 | B191: 2028-07-20 | C191: 30 | D191: 366 | E191: 921954.7197 | F191: 12091.20944 | G191: =IF(A191="",0,SUM($F$6:F191)-SUM($G$6:G190)) -> 12091.20944 | H191: 9200 | I191: -2891.209439 | J191: =E191-I191 -> 924845.9292
A192: 186 | B192: 2028-08-20 | C192: 31 | D192: 366 | E192: 924845.9292 | F192: 12533.43117 | G192: =IF(A192="",0,SUM($F$6:F192)-SUM($G$6:G191)) -> 12533.43117 | H192: 9200 | I192: -3333.431171 | J192: =E192-I192 -> 928179.3603
A193: 187 | B193: 2028-09-20 | C193: 31 | D193: 366 | E193: 928179.3603 | F193: 12578.60554 | G193: =IF(A193="",0,SUM($F$6:F193)-SUM($G$6:G192)) -> 12578.60554 | H193: 9200 | I193: -3378.605539 | J193: =E193-I193 -> 931557.9659
A194: 188 | B194: 2028-10-20 | C194: 30 | D194: 366 | E194: 931557.9659 | F194: 12217.15365 | G194: =IF(A194="",0,SUM($F$6:F194)-SUM($G$6:G193)) -> 12217.15365 | H194: 9200 | I194: -3017.153651 | J194: =E194-I194 -> 934575.1195
A195: 189 | B195: 2028-11-20 | C195: 31 | D195: 366 | E195: 934575.1195 | F195: 12665.28031 | G195: =IF(A195="",0,SUM($F$6:F195)-SUM($G$6:G194)) -> 12665.28031 | H195: 9200 | I195: -3465.280308 | J195: =E195-I195 -> 938040.3998
A196: 190 | B196: 2028-12-20 | C196: 30 | D196: 366 | E196: 938040.3998 | F196: 12302.16918 | G196: =IF(A196="",0,SUM($F$6:F196)-SUM($G$6:G195)) -> 12302.16918 | H196: 9200 | I196: -3102.169178 | J196: =E196-I196 -> 941142.569
A197: 191 | B197: 2029-01-20 | C197: 31 | D197: 365 | E197: 941142.569 | F197: 12789.22505 | G197: =IF(A197="",0,SUM($F$6:F197)-SUM($G$6:G196)) -> 12789.22505 | H197: 9200 | I197: -3589.225048 | J197: =E197-I197 -> 944731.7941
A198: 192 | B198: 2029-02-20 | C198: 31 | D198: 365 | E198: 944731.7941 | F198: 12837.99917 | G198: =IF(A198="",0,SUM($F$6:F198)-SUM($G$6:G197)) -> 12837.99917 | H198: 9200 | I198: -3637.999174 | J198: =E198-I198 -> 948369.7932
A199: 193 | B199: =DATE(YEAR(B198),MONTH(B198)+1,DAY(B198)) -> 2029-03-20 | C199: 28 | D199: 365 | E199: 948369.7932 | F199: 11640.26486 | G199: =IF(A199="",0,SUM($F$6:F199)-SUM($G$6:G198)) -> 11640.26486 | H199: =IF(A199="",0,$C$3) -> 9200 | I199: -2440.26486 | J199: =E199-I199 -> 950810.0581
A200: =ROW(A194) -> 194 | B200: 2029-04-20 | C200: =B200-B199 -> 31 | D200: =IF(MOD(YEAR(B200),4)=0,366,365) -> 365 | E200: =J199 -> 950810.0581 | F200: =E200*$C$1*C200/D200 -> 12920.59695 | G200: =IF(A200="",0,SUM($F$6:F200)-SUM($G$6:G199)) -> 12920.59695 | H200: 9200 | I200: =H200-G200 -> -3720.596954 | J200: =E200-I200 -> 954530.6551
... 113 more rows
